bitfinex-derivatives/quotes_ETHF0:USTF0_20250926
["timestamp","ask_amount","ask_price","bid_price","bid_amount"]
[1758886765832,16.61122191,3910.4,3910.3,1.11649]
[1758886766031,16.61122191,3910.4,3910.3,1.37009]
[1758886766230,16.51979151,3910.4,3910.3,1.37009]
[1758886767327,16.49429151,3910.4,3910.3,1.37009]
[1758886767936,16.49429151,3910.4,3910.3,1.63209]
[1758886770626,3.2078,3910.9,3910.3,1.1721]
[1758886770828,0.2679,3910.9,3910.8,1.37003]
[1758886771033,0.2934,3911.1,3911.0,1.13721]
[1758886771231,16.6110475,3911.1,3911.0,1.52271]
[1758886771935,3.9964,3911.8,3911.7,0.45983]
[1758886772134,4.08765247,3911.8,3911.7,0.45983]
[1758886772332,20.05724398,3911.8,3911.7,0.45983]
[1758886772822,20.05724398,3911.8,3911.4,0.262]
[1758886772823,19.79334398,3911.8,3911.4,0.262]
[1758886773025,19.79334398,3911.8,3910.7,0.84545]
[1758886773026,0.7886,3910.8,3910.7,0.84545]
[1758886773224,16.75819151,3910.8,3910.7,1.37845]
[1758886773429,16.49429151,3910.8,3910.7,1.37845]
[1758886774134,16.75819151,3910.8,3910.7,1.10745]
[1758886774439,16.75819151,3910.8,3910.7,0.72195]
[1758886774640,16.8494504,3910.8,3910.7,0.72195]
[1758886775029,17.3093904,3910.8,3910.7,0.262]
[1758886776129,16.8494504,3910.8,3910.7,0.262]
[1758886776339,0.7886,3910.2,3910.1,1.11651]
[1758886776534,16.75819151,3910.2,3910.1,1.37851]
[1758886776738,16.75819151,3910.2,3910.1,1.10751]
[1758886777037,17.30953369,3910.2,3910.1,0.262]
[1758886777229,16.84952369,3910.2,3910.1,0.262]
[1758886778136,0.46002,3910.1,3909.8,0.46005]
[1758886778341,16.47709151,3909.9,3909.8,1.09655]
[1758886778538,0.5075,3909.4,3909.3,4.55181]
[1758886778840,0.5075,3909.4,3909.3,4.81381]
[1758886779234,0.5075,3909.9,3909.8,1.34395]
[1758886779428,0.5075,3909.9,3909.8,1.60595]
[1758886779637,16.56849769,3909.9,3909.8,1.60595]
[1758886779937,0.5075,3909.9,3909.8,1.60595]
[1758886780136,0.5989062,3909.9,3909.8,1.60595]
[1758886780332,1.0589462,3909.9,3909.8,0.897]
[1758886780540,0.96756,3909.7,3909.4,0.84769]
[1758886780726,0.96756,3909.7,3909.4,0.8477]
[1758886780727,0.7579,3909.5,3909.4,0.8477]
[1758886780930,0.5075,3909.5,3909.4,1.3586]
[1758886781233,3.2078,3910.3,3909.8,0.95635]
[1758886781234,0.2496,3909.9,3909.8,0.95635]
[1758886781434,0.34106245,3909.9,3909.8,1.60595]
[1758886781840,0.80110245,3909.9,3909.8,1.60595]
[1758886782340,0.80110245,3909.9,3909.8,1.1459]
[1758886782839,0.80110245,3909.9,3909.8,1.60595]
[1758886783440,0.09146245,3909.9,3909.8,1.60595]
[1758886783837,0.34106245,3909.9,3909.8,1.1459]
[1758886784030,0.80110245,3909.9,3909.8,1.1459]
[1758886784232,0.34106245,3909.9,3909.8,1.60595]
[1758886785245,0.80110245,3909.9,3909.8,1.60595]
[1758886786230,0.34106245,3909.9,3909.8,1.60595]
[1758886787143,0.09146245,3909.9,3909.8,1.60595]
[1758886787640,17.02859396,3909.9,3909.8,1.60595]
[1758886787937,16.56855396,3909.9,3909.8,1.60595]
[1758886788836,17.02859396,3909.9,3909.8,1.60595]
[1758886789034,17.27899396,3909.9,3909.8,1.10965]
[1758886789241,0.96838,3909.7,3909.6,0.84767]
[1758886789541,1.30944245,3909.7,3909.6,1.35857]
[1758886789738,17.02863396,3909.7,3909.6,1.35857]
[1758886790134,16.56855396,3909.7,3909.6,1.35857]
[1758886790334,17.02861396,3909.7,3909.6,1.35857]
[1758886790740,16.56855396,3909.7,3909.6,1.35857]
[1758886791136,16.56855396,3909.7,3909.6,1.60597]
[1758886791336,17.02861396,3909.7,3909.6,1.1459]
[1758886792041,17.02861396,3909.7,3909.6,1.60598]
[1758886793242,16.56855396,3909.7,3909.6,1.60598]
[1758886793442,17.02861396,3909.7,3909.6,1.60598]
[1758886793744,17.27901396,3909.7,3909.6,1.60598]
[1758886794240,17.02861396,3909.7,3909.6,1.60598]
[1758886794644,16.56855396,3909.7,3909.6,1.60598]
[1758886794940,16.56855396,3909.7,3908.7,0.262]
[1758886794941,0.2496,3908.8,3908.7,0.262]
[1758886795137,17.27912396,3908.8,3908.7,0.262]
[1758886796837,17.27912396,3908.8,3908.7,0.72218]
[1758886797148,17.02872396,3908.8,3908.7,1.35868]
[1758886797445,17.02872396,3908.8,3908.7,1.60608]
[1758886798747,17.27912396,3908.8,3908.7,0.6496]
[1758886798941,17.27937375,3908.8,3908.7,0.262]
[1758886799446,17.27937375,3908.8,3908.7,0.6496]
[1758886799847,17.27937375,3908.8,3908.7,1.10978]
[1758886800047,17.27937375,3908.8,3908.7,0.6496]
[1758886800340,16.81920375,3908.8,3908.7,1.35868]
[1758886800638,16.56880375,3908.8,3908.7,1.35868]
[1758886800849,17.02897375,3908.8,3908.7,1.35868]
[1758886801041,0.09171224,3908.8,3908.7,1.60608]
[1758886801244,3.7153,3909.4,3909.3,0.8839]
[1758886801439,16.72749151,3909.4,3909.3,0.8985]
[1758886802041,16.72749151,3909.4,3909.3,0.262]
[1758886802245,16.47709151,3909.4,3909.3,0.8985]
[1758886802445,16.72749151,3909.4,3909.3,0.262]
[1758886803144,0.7579,3909.3,3909.2,0.46011]
[1758886803350,16.72749151,3909.3,3909.2,0.46011]
[1758886804145,0.7579,3909.0,3908.9,0.46015]
[1758886804449,16.72749151,3909.0,3908.9,1.10975]
[1758886804638,16.47709151,3909.0,3908.9,1.35865]
[1758886804945,0.5075,3909.4,3909.3,1.0966]
[1758886805341,16.72349151,3909.4,3909.3,0.6365]
[1758886805743,16.72349151,3909.4,3909.3,0.3876]
[1758886806147,16.47709151,3909.4,3909.3,0.8795]
[1758886806451,0.0255,3909.8,3909.7,1.35566]
[1758886806644,0.0255,3909.8,3909.7,1.61766]
[1758886808349,0.7593,3909.3,3909.2,0.9106111]
[1758886808550,0.3916,3909.7,3909.3,0.5115]
[1758886808745,0.0255,3909.8,3909.7,0.8958]
[1758886809044,0.0255,3909.8,3909.7,1.1578]
[1758886809554,3.2078,3910.3,3910.2,1.3558]
[1758886809752,3.2078,3910.3,3910.2,1.1578]
[1758886809753,0.2558,3910.3,3910.2,1.1578]
[1758886809953,0.5143,3910.3,3910.2,1.1578]
[1758886810752,0.9059,3910.3,3910.2,1.1578]
[1758886811044,3.2078,3910.7,3910.5,0.45996]
[1758886811245,19.17739151,3910.7,3910.6,1.1578]
[1758886811450,19.43319151,3910.7,3910.6,1.1578]
[1758886811649,20.08329151,3910.7,3910.6,0.8915]
[1758886811951,20.08329151,3910.7,3910.6,0.262]
[1758886811952,20.54324151,3910.7,3910.6,0.262]
[1758886812348,0.2558,3910.3,3910.2,0.3843]
[1758886812651,0.9059,3910.1,3910.0,0.7902]
[1758886813246,0.99709757,3910.1,3910.0,0.7902]
[1758886813445,0.60549757,3910.1,3910.0,1.0565]
[1758886814552,16.48389151,3910.1,3910.0,1.0565]
[1758886814857,16.96667421,3910.1,3910.0,0.6295]
[1758886815167,3.4636,3910.7,3910.6,0.8958]
[1758886815349,3.55476767,3910.7,3910.6,1.1578]
[1758886815549,0.60546767,3910.7,3910.6,1.1578]
[1758886815853,0.99706767,3910.7,3910.6,1.1578]
[1758886816352,0.60546767,3910.7,3910.6,1.1578]
[1758886816750,0.34696767,3910.7,3910.6,1.1578]
[1758886816950,0.09116767,3910.7,3910.6,1.1578]
[1758886817148,3.2078,3911.2,3911.1,0.5115]
[1758886817352,3.2078,3911.2,3911.1,1.1578]
[1758886817548,16.48389151,3911.2,3911.1,1.1578]
[1758886817956,3.2078,3911.6,3911.1,0.6463]
[1758886818151,3.7221,3911.6,3911.5,0.6295]
[1758886818351,3.4636,3911.6,3911.5,1.0565]
[1758886818551,19.43319151,3911.6,3911.5,1.0565]
[1758886819149,16.48389151,3911.6,3911.5,1.0565]
[1758886819564,3.2078,3912.1,3911.6,0.3843]
[1758886819759,15.96959151,3911.7,3911.6,1.35564]
[1758886820156,0.5143,3911.9,3911.8,0.70502]
[1758886820357,0.5143,3911.9,3911.8,1.08932]
[1758886820660,16.48389151,3911.9,3911.8,1.08932]
[1758886820857,0.5143,3911.9,3911.8,1.35562]
[1758886821065,3.4636,3912.1,3912.0,1.24999]
[1758886821260,0.0255,3912.4,3912.0,1.0565]
[1758886821449,0.5398,3912.4,3912.3,1.35556]
[1758886821654,0.9314,3912.4,3912.3,0.6463]
[1758886821848,0.9314,3912.4,3912.2,0.45976]
[1758886822059,16.87549151,3912.3,3912.2,0.72176]
[1758886822355,16.87549151,3912.3,3912.2,1.35126]
[1758886822768,16.87549151,3912.3,3912.2,0.262]
[1758886822960,16.87549151,3912.3,3911.5,0.1607]
[1758886822961,0.9059,3912.0,3911.9,0.4598]
[1758886823264,0.9059,3911.8,3911.7,0.262]
[1758886823467,16.48389151,3911.8,3911.7,1.1578]
[1758886823864,16.87549151,3911.8,3911.7,0.262]
[1758886824565,16.87549151,3911.8,3911.7,0.8915]
[1758886824762,16.48389151,3911.8,3911.7,1.1578]
[1758886825356,16.48389151,3911.8,3911.7,0.8915]
[1758886825556,16.87549151,3911.8,3911.7,0.8915]
[1758886825959,16.87549151,3911.8,3911.7,0.6463]
[1758886826264,16.48389151,3911.8,3911.7,0.8915]
[1758886826656,16.87549151,3911.8,3911.7,0.8915]
[1758886826857,16.87549151,3911.8,3911.7,0.6463]
[1758886827057,16.87549151,3911.8,3911.7,0.262]
[1758886828464,0.9059,3911.3,3911.2,3.92969]
[1758886828855,16.87549151,3911.3,3911.2,3.4698]
[1758886829267,16.87549151,3911.3,3911.2,4.3656]
[1758886829268,16.48389151,3911.3,3911.2,4.3656]
[1758886829671,0.5143,3911.3,3911.2,4.3656]
[1758886829960,0.2558,3911.3,3911.2,4.3656]
[1758886831066,0.3422,3912.0,3911.2,4.3656]
[1758886831067,0.02544687,3912.5,3912.4,0.45975]
[1758886831367,0.99709867,3912.5,3912.4,51.67173017]
[1758886831564,0.99709867,3912.5,3912.4,92.47173017]
[1758886831565,0.5418,3912.5,3912.4,92.47173017]
[1758886832163,0.5418,3912.5,3912.4,84.61455]
[1758886832363,0.1502,3913.0,3912.8,0.4597]
[1758886832562,0.1502,3913.0,3912.8,3.9305]
[1758886834371,0.4136,3912.9,3912.8,3.4708]
[1758886834568,16.38319151,3912.9,3912.8,3.4708]
[1758886834762,16.38319151,3912.9,3912.8,0.263]
[1758886837482,16.89749151,3912.9,3912.8,0.263]
[1758886838967,16.89749151,3912.9,3912.8,3.4708]
[1758886839169,0.9279,3912.9,3912.8,3.4708]
[1758886839370,0.4136,3912.9,3912.8,3.4708]
[1758886839569,0.6868,3912.9,3912.8,8.4708]
[1758886839764,0.4136,3912.9,3912.8,8.4708]
[1758886839965,0.3916,3912.9,3912.8,8.4708]
[1758886840262,0.1502,3913.0,3912.9,0.45969]
[1758886840462,0.1502,3913.0,3912.9,0.72269]
[1758886840772,0.7266,3913.5,3913.4,0.45963]
[1758886840968,0.1757,3913.5,3913.4,8.93043]
[1758886841270,0.1502,3913.5,3913.4,8.93043]
[1758886841573,1e-05,3913.5,3913.4,8.93043]
[1758886841773,1e-05,3913.5,3913.4,3.93043]
[1758886842071,1e-05,3913.5,3913.4,44.73043]
[1758886842272,0.1502,3914.0,3913.9,0.45957]
[1758886842465,0.1502,3914.0,3913.9,3.93037]
[1758886842659,0.1502,3914.0,3913.9,8.93037]
[1758886842869,0.0016,3914.3,3914.2,0.45953]
[1758886843174,0.0016,3914.3,3914.2,13.58071017]
[1758886844271,0.1502,3914.5,3914.4,0.45951]
[1758886844467,0.1502,3914.5,3914.4,3.93131]
[1758886844669,0.1502,3914.5,3914.4,8.93131]
[1758886844869,1e-05,3914.5,3914.4,8.93131]
[1758886846965,0.55091,3914.5,3914.4,3.93131]
[1758886847970,16.52050151,3914.5,3914.4,3.93131]
[1758886848474,16.93960151,3914.5,3914.4,3.93131]
[1758886848673,0.4191,3914.5,3914.4,8.66731]
[1758886848864,0.5739,3914.5,3914.4,48.78731]
[1758886849062,0.5739,3914.5,3914.4,43.78731]
[1758886849973,1.7312,3915.0,3914.9,0.45945]
[1758886850173,1.7312,3915.0,3914.9,0.72345]
[1758886850369,17.15322151,3915.0,3914.9,0.72345]
[1758886850673,0.54194,3915.0,3914.9,13.58063017]
[1758886850873,0.00891,3915.0,3914.9,13.58063017]
[1758886851268,0.00891,3915.0,3914.9,41.25945]
[1758886851476,15.45643151,3915.0,3914.9,41.52345]
[1758886851877,15.87553151,3915.0,3914.9,41.52345]
[1758886852375,16.42643151,3915.0,3914.9,0.72345]
[1758886853472,0.97,3914.9,3914.8,3.66725]
[1758886853679,16.41752151,3914.9,3914.8,3.93125]
[1758886856066,16.41752151,3914.9,3914.8,3.4718]
[1758886856271,16.41752151,3914.9,3914.8,3.93126]
[1758886856478,16.41752151,3914.9,3914.8,0.72346]
[1758886856666,21.41752151,3914.9,3914.8,0.264]
[1758886856872,21.41752151,3914.9,3914.4,3.66731]
[1758886857173,16.57232151,3914.5,3914.4,3.66731]
[1758886857377,16.57232151,3914.5,3914.0,3.2078]
[1758886857378,0.4191,3914.4,3914.0,3.2078]
[1758886857679,0.97,3914.1,3914.0,3.2078]
[1758886857879,16.41752151,3914.1,3914.0,3.2078]
[1758886858179,1.1248,3914.0,3913.9,0.45957]
[1758886858471,1.1248,3914.0,3913.6,3.2078]
[1758886858472,0.2732,3913.8,3913.7,0.45959]
[1758886858674,0.97,3913.8,3913.7,0.72359]
[1758886858875,16.41752151,3913.8,3913.7,0.72359]
[1758886859178,16.41752151,3913.8,3913.7,0.264]
[1758886859368,21.41752151,3913.8,3913.7,0.264]
[1758886859980,16.41752151,3913.8,3913.7,0.264]
[1758886860288,16.41752151,3913.8,3913.7,0.5388]
[1758886860580,0.4191,3913.8,3913.7,1.2779]
[1758886861177,16.41752151,3913.8,3913.7,0.264]
[1758886861473,1.1248,3913.5,3913.4,0.45963]
[1758886861780,1.1248,3913.5,3913.4,0.72363]
[1758886861972,16.57232151,3913.5,3913.4,0.72363]
[1758886862172,1.1248,3913.5,3913.4,0.72363]
[1758886862368,0.6923,3913.5,3913.4,1.73753]
[1758886862877,0.6923,3913.5,3913.4,1.29223]
[1758886863075,16.57232151,3913.5,3913.4,0.45963]
[1758886863280,16.57232151,3913.5,3913.4,0.72363]
[1758886863780,16.57232151,3913.5,3913.4,0.99843]
[1758886863975,16.57232151,3913.5,3913.4,1.29223]
[1758886864368,0.4191,3913.5,3913.4,1.73753]
[1758886864568,0.7057,3914.0,3913.9,0.45957]
[1758886864784,1.1248,3914.0,3913.9,0.99837]
[1758886865079,16.57232151,3914.0,3913.9,1.29217]
[1758886865377,3.2078,3914.4,3913.9,0.8326]
[1758886865574,3.4971,3914.4,3914.3,1.04482]
[1758886865768,3.8038,3914.4,3914.3,1.30882]
[1758886865980,4.2533,3914.4,3914.3,1.30882]
[1758886866178,0.4495,3914.7,3914.4,0.437]
[1758886866387,0.7388,3914.7,3914.6,1.48179]
[1758886867076,16.49302151,3914.7,3914.6,0.45949]
[1758886870084,16.49302151,3914.7,3914.6,1.46779]
[1758886870085,0.4495,3914.7,3914.6,1.46779]
[1758886870286,1.0409,3914.7,3914.6,0.45949]
[1758886870479,1.0409,3914.7,3914.6,1.30689]
[1758886870786,1.0409,3914.7,3914.6,1.73179]
[1758886870986,0.734,3914.7,3914.6,1.73179]
[1758886871476,3.2333,3915.3,3915.2,0.7198]
[1758886871477,3.8247,3915.3,3915.2,0.7198]
[1758886871672,0.6169,3915.3,3915.2,0.72342]
[1758886871878,16.03892151,3915.3,3915.2,0.72342]
[1758886872083,19.24672151,3915.3,3915.2,0.72342]
[1758886873392,19.67132151,3915.3,3915.2,0.72342]
[1758886874377,16.46352151,3915.3,3915.2,0.264]
[1758886875183,19.67132151,3915.3,3915.2,0.264]
[1758886875584,16.46352151,3915.3,3915.2,0.264]
[1758886876188,19.67132151,3915.3,3915.2,0.264]
[1758886877580,16.46352151,3915.3,3915.2,0.264]
[1758886878081,0.1693,3915.0,3914.8,0.45945]
[1758886878286,1.016,3914.9,3914.8,0.72345]
[1758886878490,16.46352151,3914.9,3914.8,0.72345]
[1758886878988,3.3626,3915.5,3915.4,0.45939]
[1758886879198,0.2845,3915.5,3915.4,1.73069]
[1758886881585,1.016,3915.5,3915.4,1.73069]
[1758886883593,16.63282151,3915.5,3915.4,0.72239]
[1758886883992,16.63282151,3915.5,3915.4,1.01729]
[1758886884293,16.63282151,3915.5,3915.4,1.44219]
[1758886884491,16.63282151,3915.5,3915.4,0.7198]
[1758886884690,1.016,3915.2,3914.7,0.90342611]
[1758886884895,1.016,3914.8,3914.7,0.75438]
[1758886885098,16.46352151,3915.4,3915.3,1.0083]
[1758886885290,16.46352151,3915.4,3915.3,1.2713]
[1758886885491,16.46352151,3915.4,3915.3,0.263]
[1758886885692,21.46352151,3915.4,3915.3,0.263]
[1758886885992,16.46352151,3915.4,3915.3,0.263]
[1758886886494,21.46352151,3915.4,3915.3,0.263]
[1758886887090,20.87212151,3915.4,3914.6,3.2078]
[1758886887299,16.46352151,3914.7,3914.6,3.2078]
[1758886887492,16.46352151,3914.7,3914.6,3.4718]
[1758886887998,16.46352151,3914.7,3914.6,3.93129]
[1758886888589,16.46352151,3914.7,3914.6,4.22619]
[1758886888790,16.46352151,3914.7,3914.6,4.65109]
[1758886889996,16.46352151,3914.7,3914.6,3.93129]
[1758886893196,16.46352151,3914.7,3914.6,0.72349]
[1758886894896,16.46352151,3914.7,3914.6,1.44329]
[1758886895101,16.46352151,3914.7,3914.6,1.73179]
[1758886896597,1.016,3914.7,3914.6,1.73179]
[1758886896901,0.0255,3914.9,3914.8,1.46777]
[1758886899302,0.0255,3914.9,3914.8,4.67557]
[1758886899501,0.31,3914.9,3914.8,4.67557]
[1758886899702,0.0255,3914.9,3914.8,4.67557]
[1758886900403,0.3162,3914.9,3914.8,4.93857]
[1758886901405,0.0255,3914.9,3914.8,4.93857]
[1758886901701,0.0255,3914.9,3914.8,9.93857]
[1758886901906,0.0255,3914.9,3914.8,4.93857]
[1758886902704,0.0255,3914.9,3914.8,45.73857]
[1758886903798,0.0255,3914.9,3914.8,51.64199611]
[1758886904104,0.0255,3914.9,3914.8,1.01737]
[1758886904105,16.48502151,3914.9,3914.8,1.01737]
[1758886904305,16.48502151,3914.9,3914.8,1.47547]
[1758886904505,16.48502151,3914.9,3914.8,1.01737]
[1758886905005,16.48502151,3914.9,3914.8,1.47547]
[1758886905405,16.48502151,3914.9,3914.8,1.02747]
[1758886905608,16.48502151,3914.9,3914.8,1.48557]
[1758886905804,16.48502151,3914.9,3914.8,1.78447]
[1758886907601,0.3162,3914.9,3914.8,1.78447]
[1758886907800,0.0255,3914.9,3914.8,1.78447]
[1758886908606,1e-05,3914.9,3914.8,1.78447]
[1758886908902,3.6294,3915.6,3915.5,0.45939]
[1758886909100,19.66732151,3915.6,3915.5,1.78339]
[1758886911007,19.66732151,3915.6,3915.5,1.95329]
[1758886911706,19.66732151,3915.6,3915.5,1.02639]
[1758886912606,16.45952151,3915.6,3915.5,0.76439]
[1758886912811,16.45952151,3915.6,3915.5,0.72139]
[1758886913804,19.66732151,3915.6,3915.5,0.45939]
[1758886914109,1.012,3914.8,3914.7,0.45948]
[1758886914305,1.012,3914.8,3914.7,0.72148]
[1758886914511,16.45952151,3914.8,3914.7,0.72148]
[1758886914705,16.45952151,3914.8,3914.7,1.02648]
[1758886915010,16.45952151,3914.8,3914.7,0.72148]
[1758886915613,16.45952151,3914.8,3914.7,1.02648]
[1758886915814,16.45952151,3914.8,3914.7,1.48458]
[1758886917110,16.45952151,3914.8,3914.7,1.78348]
[1758886917311,16.45952151,3914.8,3914.7,0.72148]
[1758886918104,16.45952151,3914.8,3914.7,0.45948]
[1758886918310,16.45952151,3914.8,3914.7,0.72148]
[1758886919907,16.45952151,3914.8,3914.7,0.262]
[1758886920217,21.45952151,3914.8,3914.7,0.262]
[1758886921208,1.012,3914.4,3914.3,0.262]
[1758886921413,16.45952151,3914.4,3914.3,0.262]
[1758886922218,16.65953295,3914.4,3914.3,0.262]
[1758886922614,1.012,3913.7,3913.5,0.45962]
[1758886922813,1.012,3913.7,3913.6,1.324]
[1758886923018,0.5904,3913.7,3913.6,4.5318]
[1758886923312,0.5904,3913.7,3913.6,1.324]
[1758886923511,1.012,3913.7,3913.6,1.324]
[1758886924716,16.45952151,3913.7,3913.5,0.45962]
[1758886925018,16.45952151,3913.6,3913.5,0.76462]
[1758886925320,16.45952151,3913.6,3913.5,1.02662]
[1758886925517,16.45952151,3913.6,3913.5,1.75852]
[1758886925816,0.2907,3913.6,3913.5,1.93862]
[1758886926012,16.46732151,3913.6,3913.5,0.72162]
[1758886926218,16.46732151,3913.6,3913.5,1.02352]
[1758886926410,16.46732151,3913.6,3913.5,1.47802]
[1758886926605,16.46732151,3913.6,3913.5,0.262]
[1758886928515,16.46732151,3913.6,3913.5,0.72162]
[1758886929421,16.46732151,3913.6,3913.5,1.2771]
[1758886929618,16.46732151,3913.6,3913.5,1.73672]
[1758886930622,0.5703,3913.6,3913.5,1.73672]
[1758886930824,0.5703,3913.6,3913.5,1.90182]
[1758886931517,0.2907,3913.6,3913.5,1.90182]
[1758886932122,1.0141,3913.9,3913.8,1.47469]
[1758886932415,0.4399,3914.5,3914.4,0.45952]
[1758886932622,1.0141,3914.5,3914.4,1.73662]
[1758886932918,16.46162151,3914.5,3914.4,1.73662]
[1758886934022,0.295,3914.5,3914.4,1.73662]
[1758886934220,0.7349,3914.8,3914.7,0.45948]
[1758886934410,0.295,3914.8,3914.7,1.73758]
[1758886934615,0.5742,3914.8,3914.7,1.73758]
[1758886934815,1.0141,3914.8,3914.7,1.73758]
[1758886937016,1.0141,3914.8,3914.7,0.99878]
[1758886937324,1.0141,3914.8,3914.7,1.73758]
[1758886938520,1.0141,3914.8,3914.7,1.17038]
[1758886938725,1.0141,3914.8,3914.7,0.72248]
[1758886938922,0.5742,3914.8,3914.7,1.47458]
[1758886939118,1.0141,3914.8,3914.7,1.73658]
[1758886939517,2.6450933,3915.2,3915.1,0.45944]
[1758886939719,3.2192933,3915.2,3915.1,1.73654]
[1758886939915,18.66681481,3915.2,3915.1,1.73654]
[1758886940522,16.46162151,3915.2,3915.1,1.73654]
[1758886941918,0.295,3915.6,3915.5,0.5672]
[1758886942132,1.0141,3915.6,3915.5,1.28859]
[1758886942333,0.5742,3915.6,3915.5,1.45369]
[1758886943627,1.0396,3916.1,3916.0,1.63953]
[1758886944019,3.6477,3916.7,3916.6,0.45926]
[1758886944224,3.9427,3916.7,3916.6,1.73636]
[1758886944533,4.2219,3916.7,3916.6,1.73636]
[1758886945425,6.4270933,3916.7,3916.6,1.73636]
[1758886945833,19.66942151,3916.7,3916.6,0.72126]
[1758886946231,21.87461481,3916.7,3916.6,0.72126]
[1758886946631,19.66942151,3916.7,3916.6,0.72126]
[1758886947029,0.295,3916.0,3915.9,3.4841]
[1758886947231,16.62882151,3916.0,3915.9,1.44554]
[1758886947428,16.46162151,3916.0,3915.9,1.73644]
[1758886947628,16.62882151,3916.0,3915.9,0.72134]
[1758886949532,29.91871266,3916.0,3915.9,0.262]
[1758886949841,29.91871266,3916.0,3915.9,0.72134]
[1758886950231,29.45938266,3916.0,3915.9,0.72134]
[1758886950437,29.91871266,3916.0,3915.9,0.72134]
[1758886950936,16.62882151,3916.0,3915.9,0.45934]
[1758886951133,16.46162151,3916.0,3915.9,1.44554]
[1758886951335,16.62882151,3916.0,3915.9,0.99764]
[1758886951529,16.62882151,3916.0,3915.9,0.72134]
[1758886951834,16.62882151,3916.0,3915.9,0.99764]
[1758886952338,16.62882151,3916.0,3915.9,1.44554]
[1758886952837,16.62882151,3916.0,3915.9,0.99764]
[1758886953038,16.62882151,3916.0,3915.9,0.45934]
[1758886954538,17.08815151,3916.0,3915.9,0.45934]
[1758886955038,16.62882151,3916.0,3915.9,0.45934]
[1758886955230,16.46162151,3916.0,3915.9,0.73564]
[1758886955430,16.62882151,3916.0,3915.9,0.45934]
[1758886955831,1.0141,3916.0,3915.9,1.47444]
[1758886956641,16.46162151,3916.0,3915.9,1.47444]
[1758886958136,16.46162151,3916.0,3915.9,0.73564]
[1758886958344,16.46162151,3916.0,3915.9,1.16204]
[1758886959138,1.01632,3916.1,3915.8,0.6884]
[1758886959334,0.557,3915.9,3915.8,0.72135]
[1758886959642,16.00452151,3915.9,3915.8,0.72135]
[1758886959841,16.45092151,3915.9,3915.8,0.72135]
[1758886960244,0.4464,3916.4,3916.0,1.1616]
[1758886960539,0.2834,3916.2,3916.1,1.45222]
[1758886960843,1.0034,3916.2,3916.1,1.00772]
[1758886961739,1.0034,3916.2,3916.1,0.72232]
[1758886962540,1.0034,3916.2,3916.1,0.263]
[1758886962736,16.45092151,3916.2,3916.0,0.45932]
[1758886962937,1.0034,3916.2,3916.1,0.263]
[1758886963137,16.45092151,3916.2,3916.1,0.263]
[1758886963344,16.00452151,3916.2,3916.0,0.45932]
[1758886963546,1.0034,3916.2,3916.1,0.263]
[1758886963841,1.0034,3916.2,3916.1,0.5484]
[1758886964041,1.0034,3916.2,3916.1,0.263]
[1758886964042,16.45092151,3916.2,3916.1,0.263]
[1758886965138,0.1682,3916.0,3915.8,0.45935]
[1758886965333,1.0034,3915.9,3915.8,0.74475]
[1758886965540,1.0034,3915.9,3915.8,1.17115]
[1758886965734,0.2834,3915.9,3915.8,1.71525]
[1758886965938,0.557,3916.2,3916.1,1.45221]
[1758886966142,16.45092151,3916.2,3916.1,1.45221]
[1758886966743,3.2333,3916.5,3916.1,0.4264]
[1758886966948,19.85242151,3916.5,3916.2,0.7223]
[1758886967144,0.557,3916.3,3916.2,0.7223]
[1758886967342,1.0034,3916.3,3916.2,1.0077]
[1758886967548,1.0034,3916.3,3916.2,1.4341]
[1758886969641,1.0034,3916.3,3916.2,1.43411]
[1758886969845,18.65432506,3916.3,3916.2,0.72231]
[1758886971551,18.65432506,3916.3,3916.2,0.263]
[1758886973252,1.1716,3916.0,3915.9,0.45933]
[1758886973455,3.37500355,3916.0,3915.9,0.72233]
[1758886973655,18.82252506,3916.0,3915.9,0.72233]
[1758886976960,18.82252506,3916.0,3915.9,1.00773]
[1758886977354,18.82252506,3916.0,3915.9,1.43413]
[1758886978352,18.82252506,3916.0,3915.9,0.9748]
[1758886978550,18.82252506,3916.0,3915.9,0.72234]
[1758886978751,18.82252506,3916.0,3915.9,1.00774]
[1758886979458,18.82252506,3916.0,3915.9,0.263]
[1758886979858,0.557,3915.4,3915.3,0.90342611]
[1758886980065,0.557,3915.4,3915.2,0.45942]
[1758886980066,1.46281,3915.3,3915.2,0.45942]
[1758886980366,1.46281,3915.3,3915.2,0.74482]
[1758886980367,16.45092151,3915.3,3915.2,0.74482]
[1758886980559,16.45092151,3915.3,3915.2,1.17122]
[1758886980752,1.0034,3915.3,3915.2,1.45232]
[1758886980952,1.0034,3915.3,3915.2,0.9929]
[1758886981147,3.20680355,3915.3,3915.2,1.45232]
[1758886981760,1.0034,3915.3,3915.2,1.45232]
[1758886984453,3.66717,3915.7,3915.6,1.45228]
[1758886984454,0.2834,3915.7,3915.6,1.45228]
[1758886984660,3.20680355,3916.1,3916.0,1.17733]
[1758886984960,3.20680355,3916.1,3916.0,1.43933]
[1758886985161,18.52836355,3916.1,3916.0,1.31336849]
[1758886985556,18.52836355,3916.1,3916.0,0.262]
[1758886986062,1.1588,3916.0,3915.9,0.45934]
[1758886986263,16.48036,3916.0,3915.9,0.45934]
[1758886987869,16.48036,3916.0,3915.9,0.75094]
[1758886988368,18.68376355,3916.0,3915.9,0.75094]
[1758886989062,18.68376355,3916.0,3915.9,0.45934]
[1758886989966,3.36220355,3916.0,3915.9,0.45934]
[1758886990264,18.51976355,3916.0,3915.9,1.42404]
[1758886990467,0.2902,3916.0,3915.9,1.42404]
[1758886990657,0.2902,3916.0,3915.9,3.62744355]
[1758886991065,0.3125,3916.9,3916.8,1.42394]
[1758886991264,1.0338,3916.9,3916.8,1.2277]
[1758886991471,18.53014355,3916.9,3916.8,0.54588]